[Event "Live Chess"]
[Site "Chess.com"]
[Date "2010.12.04"]
[Round "-"]
[White "hipposcottimus"]
[Black "camby18"]
[Result "1-0"]
[CurrentPosition "7r/5p2/3b3k/3p2p1/3p3P/3P2R1/5P2/5K2 b - -"]
[Timezone "UTC"]
[ECO "C50"]
[ECOUrl "https://www.chess.com/openings/Italian-Game-Blackburne-Shilling-Gambit"]
[UTCDate "2010.12.04"]
[UTCTime "01:24:16"]
[WhiteElo "1635"]
[BlackElo "1704"]
[TimeControl "60"]
[Termination "hipposcottimus won on time"]
[StartTime "01:24:16"]
[EndDate "2010.12.04"]
[EndTime "01:26:31"]
[Link "https://www.chess.com/game/live/73816236"]

1. e4 {[%clk 0:01:00]} 1... e5 {[%clk 0:01:00]} 2. Nf3 {[%clk 0:00:59.6]} 2... Nc6 {[%clk 0:00:59.2]} 3. Bc4 {[%clk 0:00:56.7]} 3... Nd4 {[%clk 0:00:57.2]} 4. Nxd4 {[%clk 0:00:54.8]} 4... exd4 {[%clk 0:00:56.2]} 5. d3 {[%clk 0:00:54.5]} 5... d6 {[%clk 0:00:54]} 6. c3 {[%clk 0:00:54.2]} 6... c5 {[%clk 0:00:51.7]} 7. cxd4 {[%clk 0:00:53.1]} 7... cxd4 {[%clk 0:00:51.1]} 8. Nd2 {[%clk 0:00:52.7]} 8... Nf6 {[%clk 0:00:50.3]} 9. Nf3 {[%clk 0:00:52.3]} 9... Qb6 {[%clk 0:00:49]} 10. O-O {[%clk 0:00:51.4]} 10... Bg4 {[%clk 0:00:47.9]} 11. Bg5 {[%clk 0:00:50.4]} 11... Be7 {[%clk 0:00:46.1]} 12. Bh4 {[%clk 0:00:48.8]} 12... O-O {[%clk 0:00:44.8]} 13. Bg3 {[%clk 0:00:47.2]} 13... Bxf3 {[%clk 0:00:43.4]} 14. Qxf3 {[%clk 0:00:45.9]} 14... Qxb2 {[%clk 0:00:42.6]} 15. Rab1 {[%clk 0:00:44.2]} 15... Qa3 {[%clk 0:00:38.8]} 16. Rxb7 {[%clk 0:00:43.8]} 16... Rfe8 {[%clk 0:00:34.7]} 17. Bb3 {[%clk 0:00:36.6]} 17... Rab8 {[%clk 0:00:32.8]} 18. Rc7 {[%clk 0:00:28.6]} 18... Rbc8 {[%clk 0:00:29.8]} 19. Rb7 {[%clk 0:00:27.6]} 19... Rb8 {[%clk 0:00:28.9]} 20. Rc7 {[%clk 0:00:26.5]} 20... Rxb3 {[%clk 0:00:23.4]} 21. axb3 {[%clk 0:00:24.5]} 21... Qxb3 {[%clk 0:00:22.7]} 22. Rxa7 {[%clk 0:00:22.3]} 22... d5 {[%clk 0:00:22.1]} 23. e5 {[%clk 0:00:20.3]} 23... Bc5 {[%clk 0:00:13.6]} 24. exf6 {[%clk 0:00:15.9]} 24... Bxa7 {[%clk 0:00:12.4]} 25. fxg7 {[%clk 0:00:13.9]} 25... Kxg7 {[%clk 0:00:11.8]} 26. Qg4+ {[%clk 0:00:13.5]} 26... Kf8 {[%clk 0:00:11.8]} 27. Be5 {[%clk 0:00:13]} 27... Qb6 {[%clk 0:00:11]} 28. Qg7+ {[%clk 0:00:11.8]} 28... Ke7 {[%clk 0:00:09.6]} 29. Qf6+ {[%clk 0:00:10.2]} 29... Qxf6 {[%clk 0:00:07.7]} 30. Bxf6+ {[%clk 0:00:10]} 30... Kxf6 {[%clk 0:00:07.2]} 31. g4 {[%clk 0:00:09.7]} 31... Bc5 {[%clk 0:00:05.5]} 32. h4 {[%clk 0:00:09.4]} 32... Bd6 {[%clk 0:00:04.8]} 33. g5+ {[%clk 0:00:09]} 33... Kg7 {[%clk 0:00:04.2]} 34. Kg2 {[%clk 0:00:07.7]} 34... h6 {[%clk 0:00:03.9]} 35. Rh1 {[%clk 0:00:06.8]} 35... hxg5 {[%clk 0:00:02.7]} 36. Rh3 {[%clk 0:00:06.5]} 36... Rh8 {[%clk 0:00:02.3]} 37. Rg3 {[%clk 0:00:04.1]} 37... Kh6 {[%clk 0:00:00.3]} 38. Kf1 {[%clk 0:00:03.7]} 1-0

[Event "Live Chess"]
[Site "Chess.com"]
[Date "2010.12.04"]
[Round "-"]
[White "PaperTiger"]
[Black "hipposcottimus"]
[Result "0-1"]
[CurrentPosition "r4r1k/ppp3pp/1n1b4/5p2/b2P1N1q/P1P1B3/QP4PP/RN2R1K1 w - -"]
[Timezone "UTC"]
[ECO "C23"]
[ECOUrl "https://www.chess.com/openings/Bishops-Opening-2...Nc6"]
[UTCDate "2010.12.04"]
[UTCTime "01:21:36"]
[WhiteElo "1620"]
[BlackElo "1635"]
[TimeControl "60"]
[Termination "hipposcottimus won on time"]
[StartTime "01:21:36"]
[EndDate "2010.12.04"]
[EndTime "01:23:31"]
[Link "https://www.chess.com/game/live/73815673"]

1. e4 {[%clk 0:01:00]} 1... e5 {[%clk 0:01:00]} 2. Bc4 {[%clk 0:00:58.8]} 2... Nc6 {[%clk 0:00:59.6]} 3. c3 {[%clk 0:00:58]} 3... Nf6 {[%clk 0:00:57.1]} 4. d3 {[%clk 0:00:57.1]} 4... d5 {[%clk 0:00:55.3]} 5. exd5 {[%clk 0:00:55.2]} 5... Nxd5 {[%clk 0:00:55]} 6. Ne2 {[%clk 0:00:54.4]} 6... f5 {[%clk 0:00:52.3]} 7. f4 {[%clk 0:00:52.5]} 7... Nb6 {[%clk 0:00:38.6]} 8. Bb3 {[%clk 0:00:45.1]} 8... Bd6 {[%clk 0:00:35.6]} 9. fxe5 {[%clk 0:00:43.3]} 9... Nxe5 {[%clk 0:00:33.6]} 10. O-O {[%clk 0:00:43.3]} 10... Bd7 {[%clk 0:00:31.6]} 11. d4 {[%clk 0:00:42.2]} 11... Nec4 {[%clk 0:00:29]} 12. Re1 {[%clk 0:00:32.9]} 12... O-O {[%clk 0:00:26.8]} 13. a3 {[%clk 0:00:29.7]} 13... Kh8 {[%clk 0:00:24.8]} 14. Nf4 {[%clk 0:00:20.4]} 14... Na5 {[%clk 0:00:14.7]} 15. Be3 {[%clk 0:00:13.7]} 15... Nxb3 {[%clk 0:00:13]} 16. Qxb3 {[%clk 0:00:12.7]} 16... Ba4 {[%clk 0:00:10.7]} 17. Qa2 {[%clk 0:00:03.6]} 17... Qh4 {[%clk 0:00:10.3]} 0-1

[Event "Live Chess"]
[Site "Chess.com"]
[Date "2010.12.04"]
[Round "-"]
[White "hipposcottimus"]
[Black "trini_hammy"]
[Result "1-0"]
[CurrentPosition "2r2rk1/1p2bp2/2qp2PB/p1n4n/6Q1/1BN5/PPP3PP/R4R1K b - -"]
[Timezone "UTC"]
[ECO "B50"]
[ECOUrl "https://www.chess.com/openings/Sicilian-Defense-2.Nf3-d6-3.Bc4-Nc6"]
[UTCDate "2010.12.04"]
[UTCTime "01:18:53"]
[WhiteElo "1627"]
[BlackElo "1646"]
[TimeControl "60"]
[Termination "hipposcottimus won by resignation"]
[StartTime "01:18:53"]
[EndDate "2010.12.04"]
[EndTime "01:20:24"]
[Link "https://www.chess.com/game/live/73815082"]

1. e4 {[%clk 0:01:00]} 1... c5 {[%clk 0:01:00]} 2. Nf3 {[%clk 0:00:59.7]} 2... d6 {[%clk 0:00:59.6]} 3. Bc4 {[%clk 0:00:59.2]} 3... Nc6 {[%clk 0:00:59.1]} 4. d4 {[%clk 0:00:58.6]} 4... cxd4 {[%clk 0:00:57.7]} 5. Nxd4 {[%clk 0:00:58.3]} 5... Nf6 {[%clk 0:00:56.9]} 6. Nc3 {[%clk 0:00:55.5]} 6... e6 {[%clk 0:00:55.6]} 7. Bg5 {[%clk 0:00:54.5]} 7... Be7 {[%clk 0:00:55]} 8. O-O {[%clk 0:00:52.8]} 8... O-O {[%clk 0:00:54.1]} 9. f4 {[%clk 0:00:49.2]} 9... e5 {[%clk 0:00:51.6]} 10. Nf5 {[%clk 0:00:45.3]} 10... Bxf5 {[%clk 0:00:49.7]} 11. exf5 {[%clk 0:00:44.1]} 11... Rc8 {[%clk 0:00:45.6]} 12. fxe5 {[%clk 0:00:43.1]} 12... Nxe5 {[%clk 0:00:44.1]} 13. Bb3 {[%clk 0:00:42.5]} 13... a5 {[%clk 0:00:41.8]} 14. Qe1 {[%clk 0:00:35.3]} 14... Qb6+ {[%clk 0:00:38.1]} 15. Kh1 {[%clk 0:00:33.9]} 15... h6 {[%clk 0:00:36.4]} 16. Bf4 {[%clk 0:00:31.3]} 16... Ned7 {[%clk 0:00:32]} 17. Be3 {[%clk 0:00:29.9]} 17... Nc5 {[%clk 0:00:30.3]} 18. Qg3 {[%clk 0:00:28.3]} 18... Qc6 {[%clk 0:00:28.2]} 19. Bxh6 {[%clk 0:00:26.9]} 19... Nh5 {[%clk 0:00:20.4]} 20. Qg4 {[%clk 0:00:23.5]} 20... g6 {[%clk 0:00:17.7]} 21. fxg6 {[%clk 0:00:22]} 1-0

[Event "Live Chess"]
[Site "Chess.com"]
[Date "2010.12.04"]
[Round "-"]
[White "trini_hammy"]
[Black "hipposcottimus"]
[Result "1-0"]
[CurrentPosition "B2R1k2/5p2/p6p/2p1Qp2/5B2/6P1/PP2PP1P/4K1NR b K -"]
[Timezone "UTC"]
[ECO "A22"]
[ECOUrl "https://www.chess.com/openings/English-Opening-Carls-Bremen-Reversed-Dragon-Variation"]
[UTCDate "2010.12.04"]
[UTCTime "01:17:31"]
[WhiteElo "1655"]
[BlackElo "1618"]
[TimeControl "60"]
[Termination "trini_hammy won by checkmate"]
[StartTime "01:17:31"]
[EndDate "2010.12.04"]
[EndTime "01:18:25"]
[Link "https://www.chess.com/game/live/73814869"]

1. c4 {[%clk 0:01:00]} 1... e5 {[%clk 0:01:00]} 2. Nc3 {[%clk 0:00:59.5]} 2... Nf6 {[%clk 0:00:59]} 3. g3 {[%clk 0:00:59.1]} 3... d5 {[%clk 0:00:57.1]} 4. Bg2 {[%clk 0:00:58.6]} 4... e4 {[%clk 0:00:56.1]} 5. cxd5 {[%clk 0:00:57.2]} 5... Bb4 {[%clk 0:00:54.4]} 6. Nxe4 {[%clk 0:00:54.9]} 6... Qxd5 {[%clk 0:00:53.2]} 7. Nxf6+ {[%clk 0:00:53.5]} 7... gxf6 {[%clk 0:00:50.3]} 8. Bxd5 {[%clk 0:00:52.6]} 8... Be6 {[%clk 0:00:50.1]} 9. Bxb7 {[%clk 0:00:50.9]} 9... Bxd2+ {[%clk 0:00:49.8]} 10. Qxd2 {[%clk 0:00:49.2]} 10... Nc6 {[%clk 0:00:49.4]} 11. Bxc6+ {[%clk 0:00:47.7]} 11... Ke7 {[%clk 0:00:48]} 12. Bxa8 {[%clk 0:00:46.6]} 12... Bd5 {[%clk 0:00:46.6]} 13. Bxd5 {[%clk 0:00:44.3]} 13... Ra8 {[%clk 0:00:46.3]} 14. Bxa8 {[%clk 0:00:43]} 14... c5 {[%clk 0:00:45.9]} 15. Qd5 {[%clk 0:00:41.6]} 15... f5 {[%clk 0:00:44.2]} 16. Bf4 {[%clk 0:00:40.5]} 16... h6 {[%clk 0:00:41.8]} 17. Rd1 {[%clk 0:00:39.5]} 17... a6 {[%clk 0:00:40.2]} 18. Qe5+ {[%clk 0:00:38.6]} 18... Kf8 {[%clk 0:00:38.9]} 19. Rd8# {[%clk 0:00:37.3]} 1-0

[Event "Live Chess"]
[Site "Chess.com"]
[Date "2010.12.04"]
[Round "-"]
[White "hipposcottimus"]
[Black "luzdelmundo5"]
[Result "1-0"]
[CurrentPosition "4kQ2/1b1q1p1p/p3N2B/1p1Pp3/4P3/1Pr5/P5PP/R4RK1 b - -"]
[Timezone "UTC"]
[ECO "B20"]
[ECOUrl "https://www.chess.com/openings/Sicilian-Defense"]
[UTCDate "2010.12.04"]
[UTCTime "01:12:49"]
[WhiteElo "1626"]
[BlackElo "1471"]
[TimeControl "60"]
[Termination "hipposcottimus won by checkmate"]
[StartTime "01:12:49"]
[EndDate "2010.12.04"]
[EndTime "01:14:32"]
[Link "https://www.chess.com/game/live/73813914"]

1. e4 {[%clk 0:01:00]} 1... c5 {[%clk 0:01:00]} 2. Bb5 {[%clk 0:00:57.5]} 2... a6 {[%clk 0:00:58.4]} 3. Be2 {[%clk 0:00:56.8]} 3... b5 {[%clk 0:00:57.6]} 4. d4 {[%clk 0:00:56.3]} 4... c4 {[%clk 0:00:56.2]} 5. b3 {[%clk 0:00:53.4]} 5... cxb3 {[%clk 0:00:54.1]} 6. cxb3 {[%clk 0:00:52.3]} 6... Bb7 {[%clk 0:00:53.4]} 7. Nc3 {[%clk 0:00:51.3]} 7... e6 {[%clk 0:00:51.7]} 8. Bf3 {[%clk 0:00:50.5]} 8... d6 {[%clk 0:00:50.8]} 9. Nge2 {[%clk 0:00:50.1]} 9... Qc7 {[%clk 0:00:49.4]} 10. O-O {[%clk 0:00:49.8]} 10... Nd7 {[%clk 0:00:47.7]} 11. d5 {[%clk 0:00:49.3]} 11... e5 {[%clk 0:00:45.6]} 12. Bg4 {[%clk 0:00:43.9]} 12... Be7 {[%clk 0:00:44.2]} 13. Bxd7+ {[%clk 0:00:42.8]} 13... Qxd7 {[%clk 0:00:43]} 14. f4 {[%clk 0:00:42.6]} 14... Nf6 {[%clk 0:00:40.9]} 15. fxe5 {[%clk 0:00:41.5]} 15... dxe5 {[%clk 0:00:40.1]} 16. Ng3 {[%clk 0:00:39.8]} 16... Bd6 {[%clk 0:00:38.7]} 17. Nf5 {[%clk 0:00:37.4]} 17... Rc8 {[%clk 0:00:36.7]} 18. Nxg7+ {[%clk 0:00:36.2]} 18... Kf8 {[%clk 0:00:34.4]} 19. Bh6 {[%clk 0:00:33.4]} 19... Ke7 {[%clk 0:00:28.8]} 20. Qf3 {[%clk 0:00:25.5]} 20... Rxc3 {[%clk 0:00:27.3]} 21. Qxf6+ {[%clk 0:00:22.6]} 21... Kf8 {[%clk 0:00:18.8]} 22. Ne6+ {[%clk 0:00:18.7]} 22... Ke8 {[%clk 0:00:16.7]} 23. Qxh8+ {[%clk 0:00:17.4]} 23... Bf8 {[%clk 0:00:14]} 24. Qxf8# {[%clk 0:00:14.8]} 1-0

[Event "Live Chess"]
[Site "Chess.com"]
[Date "2010.12.04"]
[Round "-"]
[White "luzdelmundo5"]
[Black "hipposcottimus"]
[Result "0-1"]
[CurrentPosition "1k1r2r1/pp3p1p/8/3p4/8/P1P2P2/1P4q1/3R2K1 w - -"]
[Timezone "UTC"]
[ECO "B00"]
[ECOUrl "https://www.chess.com/openings/Nimzowitsch-Defense-Kennedy-Variation"]
[UTCDate "2010.12.04"]
[UTCTime "01:11:03"]
[WhiteElo "1476"]
[BlackElo "1621"]
[TimeControl "60"]
[Termination "hipposcottimus won by checkmate"]
[StartTime "01:11:03"]
[EndDate "2010.12.04"]
[EndTime "01:12:32"]
[Link "https://www.chess.com/game/live/73813529"]

1. e4 {[%clk 0:01:00]} 1... e5 {[%clk 0:01:00]} 2. d4 {[%clk 0:00:59.2]} 2... Nc6 {[%clk 0:00:59.7]} 3. d5 {[%clk 0:00:58.5]} 3... Nce7 {[%clk 0:00:59.2]} 4. Be3 {[%clk 0:00:56.7]} 4... d6 {[%clk 0:00:59]} 5. Bd3 {[%clk 0:00:55.4]} 5... c6 {[%clk 0:00:58.7]} 6. Nf3 {[%clk 0:00:53.4]} 6... cxd5 {[%clk 0:00:57.7]} 7. exd5 {[%clk 0:00:52.6]} 7... Nxd5 {[%clk 0:00:57.4]} 8. Nc3 {[%clk 0:00:50.1]} 8... Qa5 {[%clk 0:00:52.5]} 9. Bd2 {[%clk 0:00:47.2]} 9... Nxc3 {[%clk 0:00:51.7]} 10. Bxc3 {[%clk 0:00:46.5]} 10... Qc7 {[%clk 0:00:51.5]} 11. Bb5+ {[%clk 0:00:44.8]} 11... Bd7 {[%clk 0:00:49.6]} 12. Qd5 {[%clk 0:00:42.9]} 12... Bxb5 {[%clk 0:00:48]} 13. Qxb5+ {[%clk 0:00:42]} 13... Qd7 {[%clk 0:00:45.6]} 14. Qc4 {[%clk 0:00:39.1]} 14... Nf6 {[%clk 0:00:43.8]} 15. Qd3 {[%clk 0:00:37.7]} 15... O-O-O {[%clk 0:00:41.2]} 16. O-O {[%clk 0:00:36.1]} 16... Kb8 {[%clk 0:00:40.9]} 17. a3 {[%clk 0:00:33.8]} 17... e4 {[%clk 0:00:40.5]} 18. Qe3 {[%clk 0:00:30.6]} 18... exf3 {[%clk 0:00:40.2]} 19. Qxf3 {[%clk 0:00:29.8]} 19... d5 {[%clk 0:00:39.8]} 20. Bxf6 {[%clk 0:00:28.7]} 20... gxf6 {[%clk 0:00:38.2]} 21. Qxf6 {[%clk 0:00:28]} 21... Rg8 {[%clk 0:00:37.6]} 22. c3 {[%clk 0:00:25]} 22... Be7 {[%clk 0:00:36.8]} 23. Rab1 {[%clk 0:00:23.8]} 23... Bxf6 {[%clk 0:00:35.1]} 24. Rbd1 {[%clk 0:00:22.9]} 24... Qg4 {[%clk 0:00:34.4]} 25. g3 {[%clk 0:00:21.1]} 25... Be5 {[%clk 0:00:33.7]} 26. f3 {[%clk 0:00:19.3]} 26... Qh3 {[%clk 0:00:33.3]} 27. Rf2 {[%clk 0:00:17.1]} 27... Bxg3 {[%clk 0:00:32.6]} 28. hxg3 {[%clk 0:00:15.3]} 28... Qxg3+ {[%clk 0:00:31.3]} 29. Rg2 {[%clk 0:00:15]} 29... Qxg2# {[%clk 0:00:30.6]} 0-1

[Event "Live Chess"]
[Site "Chess.com"]
[Date "2010.12.04"]
[Round "-"]
[White "hipposcottimus"]
[Black "fresh-bm"]
[Result "1-0"]
[CurrentPosition "1kr5/ppp4p/5p1B/8/2b1P1Q1/8/PP3RPP/6K1 b - -"]
[Timezone "UTC"]
[ECO "A06"]
[ECOUrl "https://www.chess.com/openings/Reti-Opening-Tennison-Gambit"]
[UTCDate "2010.12.04"]
[UTCTime "01:08:43"]
[WhiteElo "1616"]
[BlackElo "1434"]
[TimeControl "60"]
[Termination "hipposcottimus won on time"]
[StartTime "01:08:43"]
[EndDate "2010.12.04"]
[EndTime "01:10:32"]
[Link "https://www.chess.com/game/live/73813024"]

1. e4 {[%clk 0:01:00]} 1... d5 {[%clk 0:01:00]} 2. Nf3 {[%clk 0:00:59.7]} 2... dxe4 {[%clk 0:00:58.8]} 3. Ng5 {[%clk 0:00:59.2]} 3... Nc6 {[%clk 0:00:55.2]} 4. Nxe4 {[%clk 0:00:57.4]} 4... e5 {[%clk 0:00:53.6]} 5. d3 {[%clk 0:00:56]} 5... f5 {[%clk 0:00:52.2]} 6. Bg5 {[%clk 0:00:52.2]} 6... Nf6 {[%clk 0:00:49.8]} 7. Nxf6+ {[%clk 0:00:50.7]} 7... gxf6 {[%clk 0:00:48.4]} 8. Bd2 {[%clk 0:00:50.4]} 8... e4 {[%clk 0:00:46.6]} 9. f3 {[%clk 0:00:50]} 9... Bg7 {[%clk 0:00:40.7]} 10. fxe4 {[%clk 0:00:47.9]} 10... fxe4 {[%clk 0:00:39.2]} 11. dxe4 {[%clk 0:00:47.6]} 11... Be6 {[%clk 0:00:35.3]} 12. Bd3 {[%clk 0:00:47.2]} 12... Qd7 {[%clk 0:00:32.8]} 13. O-O {[%clk 0:00:46.9]} 13... O-O-O {[%clk 0:00:30.5]} 14. c4 {[%clk 0:00:42.7]} 14... Ne5 {[%clk 0:00:28.8]} 15. Be2 {[%clk 0:00:40.7]} 15... Nd3 {[%clk 0:00:26.9]} 16. Bxd3 {[%clk 0:00:38]} 16... Qxd3 {[%clk 0:00:25.9]} 17. Nc3 {[%clk 0:00:36.6]} 17... Bxc4 {[%clk 0:00:22.2]} 18. Rf2 {[%clk 0:00:35.5]} 18... Bh6 {[%clk 0:00:16.3]} 19. Qg4+ {[%clk 0:00:33.6]} 19... Kb8 {[%clk 0:00:14.3]} 20. Bxh6 {[%clk 0:00:32.6]} 20... Qd6 {[%clk 0:00:06.4]} 21. Rd1 {[%clk 0:00:25.8]} 21... Qxd1+ {[%clk 0:00:04.3]} 22. Nxd1 {[%clk 0:00:23.9]} 22... Rxd1+ {[%clk 0:00:03.4]} 23. Qxd1 {[%clk 0:00:23.6]} 23... Rc8 {[%clk 0:00:00.7]} 24. Qg4 {[%clk 0:00:22.1]} 1-0

[Event "Live Chess"]
[Site "Chess.com"]
[Date "2010.12.04"]
[Round "-"]
[White "hipposcottimus"]
[Black "alhatz1"]
[Result "0-1"]
[CurrentPosition "r1bqk2r/p4ppp/2p1p3/4P1b1/2P1N3/2np1N2/P4PPP/R2Q1RK1 w kq -"]
[Timezone "UTC"]
[ECO "B20"]
[ECOUrl "https://www.chess.com/openings/Sicilian-Defense"]
[UTCDate "2010.12.04"]
[UTCTime "01:05:12"]
[WhiteElo "1612"]
[BlackElo "1707"]
[TimeControl "60"]
[Termination "alhatz1 won by resignation"]
[StartTime "01:05:12"]
[EndDate "2010.12.04"]
[EndTime "01:06:06"]
[Link "https://www.chess.com/game/live/73812273"]

1. e4 {[%clk 0:01:00]} 1... c5 {[%clk 0:01:00]} 2. Bb5 {[%clk 0:00:58.4]} 2... Nc6 {[%clk 0:00:59.5]} 3. Bxc6 {[%clk 0:00:58]} 3... bxc6 {[%clk 0:00:59.2]} 4. Nf3 {[%clk 0:00:57.7]} 4... e6 {[%clk 0:00:58.8]} 5. c4 {[%clk 0:00:57.4]} 5... Nf6 {[%clk 0:00:58.4]} 6. Nc3 {[%clk 0:00:57.2]} 6... d5 {[%clk 0:00:55.6]} 7. d3 {[%clk 0:00:56.9]} 7... dxc4 {[%clk 0:00:51.9]} 8. O-O {[%clk 0:00:51]} 8... cxd3 {[%clk 0:00:49.5]} 9. e5 {[%clk 0:00:49.5]} 9... Nd5 {[%clk 0:00:47.9]} 10. Ne4 {[%clk 0:00:46.5]} 10... c4 {[%clk 0:00:44.5]} 11. Bg5 {[%clk 0:00:44.9]} 11... Be7 {[%clk 0:00:42.8]} 12. b3 {[%clk 0:00:42.5]} 12... Bxg5 {[%clk 0:00:40.9]} 13. bxc4 {[%clk 0:00:40.8]} 13... Nc3 {[%clk 0:00:31.9]} 0-1

[Event "Live Chess"]
[Site "Chess.com"]
[Date "2010.12.04"]
[Round "-"]
[White "hipposcottimus"]
[Black "9tony9"]
[Result "1-0"]
[CurrentPosition "rn2Q3/p1p3pp/1p1p1pkq/3P2b1/4P3/2N3B1/PPP3PP/R3NRK1 b - -"]
[Timezone "UTC"]
[ECO "B00"]
[ECOUrl "https://www.chess.com/openings/Owens-Defense-Guatemala-Defense"]
[UTCDate "2010.12.04"]
[UTCTime "01:03:03"]
[WhiteElo "1618"]
[BlackElo "1449"]
[TimeControl "60"]
[Termination "hipposcottimus won by checkmate"]
[StartTime "01:03:03"]
[EndDate "2010.12.04"]
[EndTime "01:03:55"]
[Link "https://www.chess.com/game/live/73811868"]

1. e4 {[%clk 0:01:00]} 1... b6 {[%clk 0:01:00]} 2. d4 {[%clk 0:00:57.6]} 2... Ba6 {[%clk 0:00:59.3]} 3. d5 {[%clk 0:00:57.3]} 3... Bxf1 {[%clk 0:00:58.3]} 4. Kxf1 {[%clk 0:00:57]} 4... d6 {[%clk 0:00:57.7]} 5. f4 {[%clk 0:00:56]} 5... e5 {[%clk 0:00:56.6]} 6. Nf3 {[%clk 0:00:55.7]} 6... exf4 {[%clk 0:00:55.7]} 7. Kf2 {[%clk 0:00:55.1]} 7... Qf6 {[%clk 0:00:54.3]} 8. Rf1 {[%clk 0:00:54]} 8... Be7 {[%clk 0:00:53.7]} 9. Kg1 {[%clk 0:00:53.6]} 9... Nh6 {[%clk 0:00:53.1]} 10. Nc3 {[%clk 0:00:48.5]} 10... Ng4 {[%clk 0:00:51.1]} 11. Ne1 {[%clk 0:00:45.2]} 11... Qg6 {[%clk 0:00:50.1]} 12. Bxf4 {[%clk 0:00:43.4]} 12... Bg5 {[%clk 0:00:47.9]} 13. Bg3 {[%clk 0:00:43.1]} 13... Qh6 {[%clk 0:00:44.7]} 14. Qxg4 {[%clk 0:00:41.6]} 14... f6 {[%clk 0:00:42.3]} 15. Qc8+ {[%clk 0:00:40.3]} 15... Kf7 {[%clk 0:00:39.1]} 16. Qxh8 {[%clk 0:00:39.1]} 16... Kg6 {[%clk 0:00:38.6]} 17. Qe8# {[%clk 0:00:37.7]} 1-0

[Event "Live Chess"]
[Site "Chess.com"]
[Date "2010.12.04"]
[Round "-"]
[White "hipposcottimus"]
[Black "PaperTiger"]
[Result "0-1"]
[CurrentPosition "r4rk1/p4ppn/1qp4p/1p4b1/4P3/2N2n2/PPP1B1PP/R4R1K w - -"]
[Timezone "UTC"]
[ECO "C41"]
[ECOUrl "https://www.chess.com/openings/Philidor-Defense-3.d4"]
[UTCDate "2010.12.04"]
[UTCTime "01:01:53"]
[WhiteElo "1613"]
[BlackElo "1660"]
[TimeControl "60"]
[Termination "PaperTiger won by resignation"]
[StartTime "01:01:53"]
[EndDate "2010.12.04"]
[EndTime "01:02:55"]
[Link "https://www.chess.com/game/live/73811571"]

1. e4 {[%clk 0:01:00]} 1... e5 {[%clk 0:01:00]} 2. Nf3 {[%clk 0:00:59.4]} 2... d6 {[%clk 0:00:59.4]} 3. d4 {[%clk 0:00:58.8]} 3... Be7 {[%clk 0:00:58.6]} 4. dxe5 {[%clk 0:00:57.5]} 4... Bg4 {[%clk 0:00:57.6]} 5. Qd3 {[%clk 0:00:55.5]} 5... Bxf3 {[%clk 0:00:55.8]} 6. Qxf3 {[%clk 0:00:54.1]} 6... dxe5 {[%clk 0:00:53.9]} 7. Bc4 {[%clk 0:00:53.8]} 7... Nf6 {[%clk 0:00:52.8]} 8. Nc3 {[%clk 0:00:53.1]} 8... c6 {[%clk 0:00:51.5]} 9. O-O {[%clk 0:00:52.7]} 9... Nbd7 {[%clk 0:00:50.7]} 10. Bg5 {[%clk 0:00:52.3]} 10... O-O {[%clk 0:00:48.1]} 11. Bh4 {[%clk 0:00:52]} 11... b5 {[%clk 0:00:43.6]} 12. Bd3 {[%clk 0:00:49.7]} 12... h6 {[%clk 0:00:41.8]} 13. Qe3 {[%clk 0:00:48.2]} 13... Nh7 {[%clk 0:00:39.8]} 14. f4 {[%clk 0:00:46.9]} 14... Bxh4 {[%clk 0:00:38.6]} 15. fxe5 {[%clk 0:00:45]} 15... Nxe5 {[%clk 0:00:37.6]} 16. Be2 {[%clk 0:00:41.7]} 16... Bg5 {[%clk 0:00:35.9]} 17. Qf3 {[%clk 0:00:39.9]} 17... Qb6+ {[%clk 0:00:31.2]} 18. Kh1 {[%clk 0:00:37.3]} 18... Nxf3 {[%clk 0:00:29.7]} 0-1

[Event "Live Chess"]
[Site "Chess.com"]
[Date "2010.12.04"]
[Round "-"]
[White "PaperTiger"]
[Black "hipposcottimus"]
[Result "1-0"]
[CurrentPosition "4R1k1/pp4pp/3N3q/7r/2pP4/5P2/PP4P1/5RK1 b - -"]
[Timezone "UTC"]
[ECO "C23"]
[ECOUrl "https://www.chess.com/openings/Bishops-Opening-2...Nc6"]
[UTCDate "2010.12.04"]
[UTCTime "00:59:54"]
[WhiteElo "1653"]
[BlackElo "1620"]
[TimeControl "60"]
[Termination "PaperTiger won by checkmate"]
[StartTime "00:59:54"]
[EndDate "2010.12.04"]
[EndTime "01:01:34"]
[Link "https://www.chess.com/game/live/73811145"]

1. e4 {[%clk 0:01:00]} 1... e5 {[%clk 0:01:00]} 2. Bc4 {[%clk 0:00:58.7]} 2... Nc6 {[%clk 0:00:59.2]} 3. c3 {[%clk 0:00:57.9]} 3... Nf6 {[%clk 0:00:58.2]} 4. d3 {[%clk 0:00:57.2]} 4... d5 {[%clk 0:00:57.4]} 5. exd5 {[%clk 0:00:55.9]} 5... Na5 {[%clk 0:00:54.6]} 6. Bb5+ {[%clk 0:00:54]} 6... Bd7 {[%clk 0:00:53.2]} 7. Bxd7+ {[%clk 0:00:51.9]} 7... Qxd7 {[%clk 0:00:53]} 8. Ne2 {[%clk 0:00:50.8]} 8... Bd6 {[%clk 0:00:51.5]} 9. Be3 {[%clk 0:00:49.3]} 9... c6 {[%clk 0:00:48.7]} 10. c4 {[%clk 0:00:48.5]} 10... cxd5 {[%clk 0:00:46.6]} 11. Qd2 {[%clk 0:00:44.8]} 11... dxc4 {[%clk 0:00:45.5]} 12. Qxa5 {[%clk 0:00:43.2]} 12... O-O {[%clk 0:00:44.8]} 13. O-O {[%clk 0:00:40.8]} 13... e4 {[%clk 0:00:44.2]} 14. d4 {[%clk 0:00:37.2]} 14... Nd5 {[%clk 0:00:40.4]} 15. Qxd5 {[%clk 0:00:35.4]} 15... Bxh2+ {[%clk 0:00:39]} 16. Kxh2 {[%clk 0:00:31.8]} 16... Qxd5 {[%clk 0:00:38.7]} 17. Nbc3 {[%clk 0:00:31.2]} 17... Qh5+ {[%clk 0:00:37.9]} 18. Kg1 {[%clk 0:00:29.1]} 18... f5 {[%clk 0:00:37.7]} 19. Ng3 {[%clk 0:00:27.9]} 19... Qg4 {[%clk 0:00:35.4]} 20. Nd5 {[%clk 0:00:21]} 20... f4 {[%clk 0:00:33.8]} 21. Nxf4 {[%clk 0:00:16.4]} 21... Rxf4 {[%clk 0:00:33.4]} 22. Bxf4 {[%clk 0:00:15.4]} 22... Qxf4 {[%clk 0:00:31.7]} 23. Rae1 {[%clk 0:00:13.9]} 23... Rf8 {[%clk 0:00:31.1]} 24. Nxe4 {[%clk 0:00:11.8]} 24... Qh6 {[%clk 0:00:30.8]} 25. f3 {[%clk 0:00:09.5]} 25... Rf5 {[%clk 0:00:30.2]} 26. Nd6 {[%clk 0:00:08.1]} 26... Rh5 {[%clk 0:00:29.5]} 27. Re8# {[%clk 0:00:04.7]} 1-0